fUSD/lending_fUSD_20240823
["ID","MTS","AMOUNT","RATE_DAILY","PERIOD"]
[335663386,1724406644250,-1604.16,0.00010987,2]
[335663387,1724406644259,-500.0,0.00010987,2]
[335663388,1724406644270,-698.51,0.00010988,2]
[335663389,1724406644280,-846.2,0.00010988,2]
[335663390,1724406644290,-500.0,0.00010988,2]
[335663391,1724406644300,-500.0,0.00010988,2]
[335663392,1724406644311,-2281.48,0.00010988,2]
[335663393,1724406644322,-1825.11,0.00010988,2]
[335663394,1724406644333,-610.49,0.00010988,2]
[335663395,1724406644344,-1353.91,0.00010988,2]
[335663396,1724406644354,-1353.91,0.00010988,2]
[335663397,1724406644365,-500.0,0.00010988,2]
[335663398,1724406644375,-1494.24,0.00010988,2]
[335663399,1724406644385,-746.2,0.00010988,2]
[335663400,1724406644394,-746.2,0.00010988,2]
[335663401,1724406644404,-500.0,0.00010988,2]
[335663402,1724406644413,-730.13,0.00010988,2]
[335663403,1724406644422,-730.13,0.00010988,2]
[335663404,1724406644432,-542.74,0.00010988,2]
[335663405,1724406644443,-542.74,0.00010988,2]
[335663406,1724406644453,-542.74,0.00010988,2]
[335663407,1724406644463,-500.0,0.00010988,2]
[335663408,1724406644475,-791.77,0.00010988,2]
[335663409,1724406644484,-1135.61,0.00010988,2]
[335663410,1724406644494,-704.18,0.00010988,2]
[335663411,1724406644503,-704.18,0.00010988,2]
[335663412,1724406644513,-500.0,0.00010988,2]
[335663413,1724406644522,-572.42,0.00010988,2]
[335663414,1724406644531,-500.0,0.00010988,2]
[335663415,1724406644540,-639.38,0.00010988,2]
[335663416,1724406644549,-639.38,0.00010988,2]
[335663417,1724406644560,-4385.31,0.00010988,2]
[335663418,1724406644570,-4385.31,0.00010988,2]
[335663419,1724406644578,-4385.31,0.00010988,2]
[335663420,1724406644588,-500.0,0.00010988,2]
[335663421,1724406644597,-1618.16,0.00010988,2]
[335663422,1724406644607,-500.0,0.00010988,2]
[335663423,1724406644616,-822.38,0.00010988,2]
[335663424,1724406644625,-500.0,0.00010988,2]
[335663425,1724406644634,-500.0,0.00010988,2]
[335663426,1724406644643,-500.0,0.00010988,2]
[335663427,1724406644652,-500.0,0.00010988,2]
[335663428,1724406644662,-666.85,0.00010988,2]
[335663429,1724406644672,-500.0,0.00010988,2]
[335663430,1724406644685,-666.85,0.00010988,2]
[335663431,1724406644695,-4798.83,0.00010988,2]
[335663432,1724406644705,-3362.04,0.00010988,2]
[335663433,1724406644714,-500.0,0.00010988,2]
[335663434,1724406644724,-830.54,0.00010988,2]
[335663435,1724406644733,-830.54,0.00010988,2]
[335663436,1724406644742,-552.56259292,0.00010988,2]
[335663437,1724406644752,-805.9,0.00010988,2]
[335663438,1724406644761,-805.9,0.00010988,2]
[335663439,1724406644771,-701.57,0.00010988,2]
[335663440,1724406644780,-500.0,0.00010988,2]
[335663441,1724406644790,-1180.22,0.00010988,2]
[335663442,1724406644799,-1180.22,0.00010988,2]
[335663443,1724406644808,-500.0,0.00010988,2]
[335663444,1724406644819,-353.27572755,0.00010988,2]
[335663445,1724406644828,-500.0,0.00010988,2]
[335663446,1724406644837,-638.17,0.00010988,2]
[335663447,1724406644846,-638.17,0.00010988,2]
[335663448,1724406644856,-638.17,0.00010988,2]
[335663449,1724406644866,-500.0,0.00010988,2]
[335663450,1724406644876,-500.0,0.00010988,2]
[335663451,1724406644885,-2117.25,0.00010988,2]
[335663452,1724406644895,-500.17,0.00010988,2]
[335663453,1724406644904,-784.32,0.00010988,2]
[335663454,1724406644913,-784.32,0.00010988,2]
[335663455,1724406644922,-768.97,0.00010988,2]
[335663456,1724406644931,-500.0,0.00010988,2]
[335663457,1724406644941,-500.0,0.00010988,2]
[335663458,1724406644950,-950.79,0.00010988,2]
[335663459,1724406644959,-718.26,0.00010988,2]
[335663460,1724406644969,-718.26,0.00010988,2]
[335663461,1724406644977,-940.93,0.00010988,2]
[335663462,1724406644986,-940.93,0.00010988,2]
[335663463,1724406644995,-2697.02,0.00010988,2]
[335663464,1724406645005,-975.23,0.00010988,2]
[335663465,1724406645015,-500.0,0.00010988,2]
[335663466,1724406645024,-500.0,0.00010988,2]
[335663467,1724406645033,-500.0,0.00010988,2]
[335663468,1724406645042,-500.0,0.00010988,2]
[335663469,1724406645051,-500.0,0.00010988,2]
[335663470,1724406645060,-500.0,0.00010988,2]
[335663471,1724406645069,-837.68,0.00010988,2]
[335663472,1724406645079,-837.68,0.00010988,2]
[335663473,1724406645088,-957.65,0.00010988,2]
[335663474,1724406645098,-907.92,0.00010988,2]
[335663475,1724406645108,-907.92,0.00010988,2]
[335663476,1724406645117,-997.33,0.00010988,2]
[335663477,1724406645126,-997.33,0.00010988,2]
[335663478,1724406645135,-997.33,0.00010988,2]
[335663479,1724406645144,-867.66,0.00010988,2]
[335663480,1724406645154,-500.0,0.00010988,2]
[335663481,1724406645163,-590.8,0.00010988,2]
[335663482,1724406645172,-500.0,0.00010988,2]
[335663483,1724406645181,-544.76,0.00010988,2]
[335663484,1724406645190,-544.76,0.00010988,2]
[335663485,1724406645200,-544.76,0.00010988,2]
[335663486,1724406645209,-574.22,0.00010988,2]
[335663487,1724406645218,-574.22,0.00010988,2]
[335663488,1724406645227,-574.22,0.00010988,2]
[335663489,1724406645237,-1519.35,0.00010988,2]
[335663490,1724406645247,-848.38,0.00010988,2]
[335663491,1724406645257,-848.38,0.00010988,2]
[335663492,1724406645266,-500.0,0.00010988,2]
[335663493,1724406645276,-660.27,0.00010988,2]
[335663494,1724406645285,-500.0,0.00010988,2]
[335663495,1724406645294,-500.0,0.00010988,2]
[335663496,1724406645304,-500.0,0.00010988,2]
[335663497,1724406645314,-1553.62,0.00010988,2]
[335663498,1724406645324,-1553.62,0.00010988,2]
[335663499,1724406645335,-1553.62,0.00010988,2]
[335663500,1724406645345,-4204.34,0.00010988,2]
[335663501,1724406645356,-4204.34,0.00010988,2]
[335663502,1724406645365,-1463.39,0.00010988,2]
[335663503,1724406645375,-500.0,0.00010988,2]
[335663504,1724406645384,-500.0,0.00010988,2]
[335663505,1724406645393,-19418.54,0.00010988,2]
[335663506,1724406645551,-19418.54,0.00010988,2]
[335663507,1724406645560,-5007.75,0.00010988,2]
[335663508,1724406645570,-2120.38,0.00010988,2]
[335663509,1724406645578,-5007.75,0.00010988,2]
[335663510,1724406645588,-2120.38,0.00010988,2]
[335663511,1724406645597,-5007.75,0.00010988,2]
[335663512,1724406645606,-5531.66,0.00010988,2]
[335663513,1724406645616,-767.55,0.00010988,2]
[335663514,1724406645626,-767.55,0.00010988,2]
[335663515,1724406645635,-500.0,0.00010988,2]
[335663516,1724406645644,-500.0,0.00010988,2]
[335663517,1724406645654,-1857.33,0.00010988,2]
[335663518,1724406645663,-1857.33,0.00010988,2]
[335663519,1724406645673,-892.25,0.00010988,2]
[335663520,1724406645684,-892.25,0.00010988,2]
[335663521,1724406645694,-500.0,0.00010988,2]
[335663522,1724406645703,-500.0,0.00010988,2]
[335663523,1724406645712,-500.0,0.00010988,2]
[335663524,1724406645723,-500.0,0.00010988,2]
[335663525,1724406645731,-500.0,0.00010988,2]
[335663526,1724406645740,-637.47,0.00010988,2]
[335663527,1724406645750,-500.0,0.00010988,2]
[335663528,1724406645760,-500.0,0.00010988,2]
[335663529,1724406645770,-637.47,0.00010988,2]
[335663530,1724406645779,-776.13,0.00010988,2]
[335663531,1724406645788,-3934.93,0.00010988,2]
[335663532,1724406645798,-776.13,0.00010988,2]
[335663533,1724406645808,-776.13,0.00010988,2]
[335663534,1724406645817,-500.0,0.00010988,2]
[335663535,1724406645826,-2329.67,0.00010988,2]
[335663536,1724406645835,-2329.67,0.00010988,2]
[335663537,1724406645844,-688.56,0.00010988,2]
[335663538,1724406645853,-688.56,0.00010988,2]
[335663539,1724406645863,-500.0,0.00010988,2]
[335663540,1724406645872,-4981.21,0.00010988,2]
[335663541,1724406645881,-4981.21,0.00010988,2]
[335663542,1724406645890,-721.7,0.00010988,2]
[335663543,1724406645899,-721.7,0.00010988,2]
[335663544,1724406645908,-721.7,0.00010988,2]
[335663545,1724406645917,-716.37,0.00010988,2]
[335663546,1724406645926,-500.0,0.00010988,2]
[335663547,1724406645935,-500.0,0.00010988,2]
[335663548,1724406645945,-500.0,0.00010988,2]
[335663549,1724406645955,-1248.73,0.00010988,2]
[335663550,1724406645964,-500.0,0.00010988,2]
[335663551,1724406645973,-1520.94,0.00010988,2]
[335663552,1724406645983,-1520.94,0.00010988,2]
[335663553,1724406645992,-1520.94,0.00010988,2]
[335663554,1724406646001,-1040.96,0.00010988,2]
[335663555,1724406646012,-1040.96,0.00010988,2]
[335663556,1724406646022,-658.18,0.00010988,2]
[335663557,1724406646034,-658.18,0.00010988,2]
[335663558,1724406646044,-1466.63,0.00010988,2]
[335663559,1724406646054,-500.0,0.00010988,2]
[335663560,1724406646064,-500.0,0.00010988,2]
[335663561,1724406646075,-500.0,0.00010988,2]
[335663562,1724406646085,-500.0,0.00010988,2]
[335663563,1724406646094,-500.0,0.00010988,2]
[335663564,1724406646103,-2081.86,0.00010988,2]
[335663565,1724406646112,-2081.86,0.00010988,2]
[335663566,1724406646122,-891.21,0.00010988,2]
[335663567,1724406646131,-891.21,0.00010988,2]
[335663568,1724406646142,-4286.48,0.00010988,2]
[335663569,1724406646153,-4286.48,0.00010988,2]
[335663570,1724406646164,-1416.28,0.00010988,2]
[335663571,1724406646173,-1416.28,0.00010988,2]
[335663572,1724406646184,-500.0,0.00010988,2]
[335663573,1724406646195,-500.0,0.00010988,2]
[335663574,1724406646206,-1416.28,0.00010988,2]
[335663575,1724406646215,-562.67880684,0.00010988,2]
[335663576,1724406646224,-2331.37,0.00010988,2]
[335663577,1724406646233,-500.0,0.00010988,2]
[335663578,1724406646242,-500.0,0.00010988,2]
[335663579,1724406646251,-792.18,0.00010988,2]
[335663580,1724406646260,-792.18,0.00010988,2]
[335663581,1724406646271,-792.18,0.00010988,2]
[335663582,1724406646282,-837.79,0.00010988,2]
[335663583,1724406646292,-837.79,0.00010988,2]
[335663584,1724406646301,-1142.04,0.00010988,2]
[335663585,1724406646311,-246.64,0.00010988,2]
[335663586,1724406646321,-678.89,0.00010988,2]
[335663587,1724406646333,-1581.21,0.00010988,2]
[335663588,1724406646343,-1581.21,0.00010988,2]
[335663589,1724406646352,-1152.68,0.00010988,2]
[335663590,1724406646362,-1152.68,0.00010988,2]
[335663591,1724406646372,-11311.29,0.00010988,2]
[335663592,1724406646383,-11311.29,0.00010988,2]
[335663593,1724406646392,-920.87,0.00010988,2]
[335663594,1724406646402,-795.89,0.00010988,2]
[335663595,1724406646412,-2746.66,0.00010988,2]
[335663596,1724406646421,-1054.49,0.00010988,2]
[335663597,1724406646430,-1054.49,0.00010988,2]
[335663598,1724406646441,-530.23,0.00010988,2]
[335663599,1724406646453,-530.23,0.00010988,2]
[335663600,1724406646462,-500.0,0.00010988,2]
[335663601,1724406646471,-500.0,0.00010988,2]
[335663602,1724406646480,-500.0,0.00010988,2]
[335663603,1724406646489,-1557.99,0.00010988,2]
[335663604,1724406646499,-1557.99,0.00010988,2]
[335663605,1724406646508,-931.71,0.00010988,2]
[335663606,1724406646517,-1557.99,0.00010988,2]
[335663607,1724406646526,-730.46,0.00010988,2]
[335663608,1724406646536,-1061.25,0.00010988,2]
[335663609,1724406646545,-931.71,0.00010988,2]
[335663610,1724406646554,-730.46,0.00010988,2]
[335663611,1724406646564,-1061.25,0.00010988,2]
[335663612,1724406646574,-931.71,0.00010988,2]
[335663613,1724406646583,-1061.25,0.00010988,2]
[335663614,1724406646592,-703.69,0.00010988,2]
[335663615,1724406646602,-500.0,0.00010988,2]
[335663616,1724406646611,-500.0,0.00010988,2]
[335663617,1724406646621,-561.33283175,0.00010988,2]
[335663618,1724406646630,-1170.17,0.00010988,2]
[335663619,1724406646639,-917.98,0.00010988,2]
[335663620,1724406646648,-1654.87,0.00010988,2]
[335663621,1724406646658,-1654.87,0.00010988,2]
[335663622,1724406646667,-1654.87,0.00010988,2]
[335663623,1724406646677,-500.0,0.00010988,2]
[335663624,1724406646687,-500.0,0.00010988,2]
[335663625,1724406646708,-500.0,0.00010988,2]
[335663626,1724406646718,-1031.51,0.00010988,2]
[335663627,1724406646727,-1031.51,0.00010988,2]
[335663628,1724406646736,-1327.69,0.00010988,2]
[335663629,1724406646745,-1078.31,0.00010988,2]
[335663630,1724406646755,-1327.69,0.00010988,2]
[335663631,1724406646764,-500.0,0.00010988,2]
[335663633,1724406646773,-500.0,0.00010988,2]
[335663634,1724406646783,-1891.85,0.00010988,2]
[335663635,1724406646792,-1891.85,0.00010988,2]
[335663636,1724406646801,-1891.85,0.00010988,2]
[335663637,1724406646810,-2238.14,0.00010988,2]
[335663638,1724406646819,-2238.14,0.00010988,2]
[335663639,1724406646828,-2238.14,0.00010988,2]
[335663640,1724406646838,-763.46,0.00010988,2]
[335663642,1724406646847,-763.46,0.00010988,2]
[335663643,1724406646856,-500.0,0.00010988,2]
[335663644,1724406646865,-500.0,0.00010988,2]
[335663645,1724406646874,-500.0,0.00010988,2]
[335663646,1724406646883,-500.0,0.00010988,2]
[335663647,1724406646893,-500.0,0.00010988,2]
[335663648,1724406646903,-2940.88,0.00010988,2]
[335663649,1724406646912,-2940.88,0.00010988,2]
[335663650,1724406646923,-1079.11,0.00010988,2]
[335663651,1724406646934,-1079.11,0.00010988,2]
[335663652,1724406646944,-792.52,0.00010988,2]
[335663653,1724406646954,-1079.11,0.00010988,2]
[335663654,1724406646963,-792.52,0.00010988,2]
[335663655,1724406646973,-792.52,0.00010988,2]
[335663656,1724406646983,-896.38,0.00010988,2]
[335663657,1724406646993,-896.38,0.00010988,2]
[335663658,1724406647002,-896.38,0.00010988,2]
[335663659,1724406647011,-500.0,0.00010988,2]
[335663660,1724406647020,-500.0,0.00010988,2]
[335663661,1724406647032,-1127.29,0.00010988,2]
[335663662,1724406647043,-1127.29,0.00010988,2]
[335663663,1724406647052,-1127.29,0.00010988,2]
[335663664,1724406647061,-674.76,0.00010988,2]
[335663665,1724406647071,-1059.21,0.00010988,2]
[335663666,1724406647080,-674.76,0.00010988,2]
[335663667,1724406647090,-1059.21,0.00010988,2]
[335663668,1724406647099,-1360.02,0.00010988,2]
[335663669,1724406647108,-1360.02,0.00010988,2]
[335663670,1724406647118,-611.8,0.00010988,2]
[335663671,1724406647127,-1360.02,0.00010988,2]
[335663672,1724406647136,-894.74,0.00010988,2]
[335663673,1724406647145,-3094.28,0.00010988,2]
[335663674,1724406647154,-3094.28,0.00010988,2]
[335663675,1724406647164,-513.55,0.00010988,2]
[335663676,1724406647173,-513.55,0.00010988,2]
[335663677,1724406647182,-1592.41,0.00010988,2]
[335663678,1724406647191,-1592.41,0.00010988,2]
[335663679,1724406647201,-1592.41,0.00010988,2]
[335663680,1724406647210,-1120.76,0.00010988,2]
[335663681,1724406647221,-1120.76,0.00010988,2]
[335663682,1724406647230,-1120.76,0.00010988,2]
[335663683,1724406647241,-832.4,0.00010988,2]
[335663684,1724406647251,-500.0,0.00010988,2]
[335663685,1724406647262,-500.0,0.00010988,2]
[335663686,1724406647272,-832.4,0.00010988,2]
[335663687,1724406647281,-500.0,0.00010988,2]
[335663688,1724406647290,-500.0,0.00010988,2]
[335663689,1724406647300,-500.0,0.00010988,2]
[335663690,1724406647309,-2666.26,0.00010988,2]
[335663691,1724406647320,-500.0,0.00010988,2]
[335663692,1724406647331,-500.0,0.00010988,2]
[335663693,1724406647340,-500.0,0.00010988,2]
[335663694,1724406647351,-4554.27,0.00010988,2]
[335663695,1724406647361,-500.0,0.00010988,2]
[335663696,1724406647371,-1063.66,0.00010988,2]
[335663697,1724406647380,-1063.66,0.00010988,2]
[335663698,1724406647390,-730.94,0.00010988,2]
[335663699,1724406647399,-730.94,0.00010988,2]
[335663700,1724406647409,-154.70052765,0.00010988,2]
[335663701,1724406647419,-875.98,0.00010988,2]
[335663702,1724406647429,-875.98,0.00010988,2]
[335663703,1724406647438,-500.0,0.00010988,2]
[335663704,1724406647448,-500.0,0.00010988,2]
[335663705,1724406647457,-500.0,0.00010988,2]
[335663706,1724406647468,-865.23,0.00010988,2]
[335663707,1724406647477,-865.23,0.00010988,2]
[335663708,1724406647486,-1141.36,0.00010988,2]
[335663709,1724406647496,-865.23,0.00010988,2]
[335663710,1724406647505,-1141.36,0.00010988,2]
[335663711,1724406647514,-1141.36,0.00010988,2]
[335663712,1724406647523,-1678.89,0.00010988,2]
[335663713,1724406647532,-500.0,0.00010988,2]
[335663714,1724406647541,-1678.89,0.00010988,2]
[335663715,1724406647550,-695.3,0.00010988,2]
[335663716,1724406647559,-500.0,0.00010988,2]
[335663717,1724406647568,-1678.89,0.00010988,2]
[335663718,1724406647578,-500.0,0.00010988,2]
[335663719,1724406647586,-744.46,0.00010988,2]
[335663720,1724406647595,-744.46,0.00010988,2]
[335663721,1724406647604,-500.0,0.00010988,2]
[335663722,1724406647613,-500.0,0.00010988,2]
[335663723,1724406647622,-500.0,0.00010988,2]
[335663724,1724406647632,-500.0,0.00010988,2]
[335663725,1724406647641,-500.0,0.00010988,2]
[335663726,1724406647650,-500.0,0.00010988,2]
[335663727,1724406647660,-932.13,0.00010988,2]
[335663728,1724406647670,-932.13,0.00010988,2]
[335663729,1724406647683,-1823.71,0.00010988,2]
[335663730,1724406647692,-932.13,0.00010988,2]
[335663731,1724406647703,-1823.71,0.00010988,2]
[335663732,1724406647712,-1823.71,0.00010988,2]
[335663733,1724406647722,-1209.21,0.00010988,2]
[335663734,1724406647732,-1209.21,0.00010988,2]
[335663735,1724406647741,-1261.79,0.00010988,2]
[335663736,1724406647752,-1261.79,0.00010988,2]
[335663737,1724406647761,-1261.79,0.00010988,2]
[335663738,1724406647771,-848.28,0.00010988,2]
[335663739,1724406647780,-1561.82,0.00010988,2]
[335663740,1724406647791,-1561.82,0.00010988,2]
[335663741,1724406647802,-1899.01,0.00010988,2]
[335663742,1724406647812,-500.0,0.00010988,2]
[335663743,1724406647821,-2796.51,0.00010988,2]
[335663744,1724406647830,-2796.51,0.00010988,2]
[335663745,1724406647841,-2796.51,0.00010988,2]
[335663746,1724406647852,-1120.32,0.00010988,2]
[335663747,1724406647862,-1120.32,0.00010988,2]
[335663748,1724406647872,-500.0,0.00010988,2]
[335663749,1724406647881,-15999.6,0.00010988,2]
[335663750,1724406647891,-15999.6,0.00010988,2]
[335663751,1724406647901,-500.0,0.00010988,2]
[335663752,1724406647911,-500.0,0.00010988,2]
[335663753,1724406647921,-500.0,0.00010988,2]
[335663754,1724406647930,-661.23,0.00010988,2]
[335663755,1724406647942,-661.23,0.00010988,2]
[335663756,1724406647955,-1127.87,0.00010988,2]
[335663757,1724406647965,-1127.87,0.00010988,2]
[335663758,1724406647976,-1127.87,0.00010988,2]
[335663759,1724406647986,-500.0,0.00010988,2]
[335663760,1724406647996,-500.0,0.00010988,2]
[335663761,1724406648005,-1260.8,0.00010988,2]
[335663762,1724406648015,-1260.8,0.00010988,2]
[335663763,1724406648025,-1260.8,0.00010988,2]
[335663764,1724406648035,-500.0,0.00010988,2]
[335663765,1724406648044,-500.0,0.00010988,2]
[335663766,1724406648053,-238.63268657,0.00010988,2]
[335663767,1724406648063,-500.0,0.00010988,2]
[335663768,1724406648072,-500.0,0.00010988,2]
[335663769,1724406648081,-500.0,0.00010988,2]
[335663770,1724406648090,-500.0,0.00010988,2]
[335663771,1724406648099,-500.0,0.00010988,2]
[335663772,1724406648109,-500.0,0.00010988,2]
[335663773,1724406648118,-500.0,0.00010988,2]
[335663774,1724406648127,-500.0,0.00010988,2]
[335663775,1724406648137,-500.0,0.00010988,2]
[335663776,1724406648147,-511.92541569,0.00010988,2]
[335663777,1724406648156,-5287.76,0.00010988,2]
[335663778,1724406648172,-500.0,0.00010988,2]
[335663779,1724406648182,-500.0,0.00010988,2]
[335663780,1724406648191,-687.52,0.00010988,2]
[335663781,1724406648201,-687.52,0.00010988,2]
[335663782,1724406648210,-500.0,0.00010988,2]
[335663783,1724406648219,-508.67365823,0.00010988,2]
[335663784,1724406648229,-5000.0,0.00010988,2]
[335663785,1724406648238,-676.57,0.00010988,2]
[335663786,1724406648247,-500.0,0.00010988,2]
[335663787,1724406648257,-676.57,0.00010988,2]
[335663788,1724406648267,-500.0,0.00010988,2]
[335663789,1724406648423,-676.57,0.00010988,2]
[335663790,1724406648434,-500.0,0.00010988,2]
[335663791,1724406648444,-682.13,0.00010988,2]
[335663792,1724406648457,-500.0,0.00010988,2]
[335663793,1724406648466,-500.0,0.00010988,2]
[335663794,1724406648475,-500.0,0.00010988,2]
[335663795,1724406648485,-500.0,0.00010988,2]
[335663796,1724406648494,-500.0,0.00010988,2]
[335663797,1724406648503,-500.0,0.00010988,2]
[335663798,1724406648513,-1718.86,0.00010988,2]
[335663799,1724406648522,-1718.86,0.00010988,2]
[335663800,1724406648532,-500.0,0.00010988,2]
[335663801,1724406648541,-500.0,0.00010988,2]
[335663802,1724406648551,-4145.58,0.00010988,2]
[335663803,1724406648561,-2651.29,0.00010988,2]
[335663804,1724406648570,-500.0,0.00010988,2]
[335663805,1724406648580,-4145.58,0.00010988,2]
[335663806,1724406648590,-714.42,0.00010988,2]
[335663807,1724406648599,-500.0,0.00010988,2]
[335663808,1724406648612,-714.42,0.00010988,2]
[335663809,1724406648621,-714.42,0.00010988,2]
[335663810,1724406648631,-792.92,0.00010988,2]
[335663811,1724406648641,-792.92,0.00010988,2]
[335663812,1724406648651,-500.0,0.00010988,2]
[335663813,1724406648661,-500.0,0.00010988,2]
[335663814,1724406648671,-500.0,0.00010988,2]
[335663815,1724406648685,-1365.29,0.00010988,2]
[335663816,1724406648695,-1365.29,0.00010988,2]
[335663817,1724406648706,-5772.31,0.00010988,2]
[335663818,1724406648716,-500.0,0.00010988,2]
[335663819,1724406648726,-500.0,0.00010988,2]
[335663820,1724406648736,-500.0,0.00010988,2]
[335663821,1724406648746,-500.0,0.00010988,2]
[335663822,1724406648757,-500.0,0.00010988,2]
[335663823,1724406648767,-709.53,0.00010988,2]
[335663824,1724406648777,-709.53,0.00010988,2]
[335663825,1724406648787,-22704.512377,0.00010988,2]
[335663826,1724406648797,-709.53,0.00010988,2]
[335663827,1724406648807,-2237.24,0.00010988,2]
[335663828,1724406648816,-2237.24,0.00010988,2]
[335663829,1724406648826,-958.7,0.00010988,2]
[335663830,1724406648835,-958.7,0.00010988,2]
[335663831,1724406648846,-500.0,0.00010988,2]
[335663832,1724406648855,-500.0,0.00010988,2]
[335663833,1724406648865,-500.0,0.00010988,2]
[335663834,1724406648874,-500.0,0.00010988,2]
[335663835,1724406648883,-1604.16,0.00010988,2]
[335663836,1724406648893,-617.65,0.00010988,2]
[335663837,1724406648902,-1604.16,0.00010988,2]
[335663838,1724406648912,-500.0,0.00010988,2]
[335663839,1724406648922,-3050.71,0.00010988,2]
[335663840,1724406648931,-500.0,0.00010988,2]
[335663841,1724406648941,-500.0,0.00010988,2]
[335663842,1724406648952,-500.0,0.00010988,2]
[335663843,1724406648961,-402.60528103,0.00010988,2]
[335663844,1724406648970,-520.0,0.00010989,2]
[335663845,1724406648980,-505.61521916,0.00010989,2]
[335663846,1724406648989,-497.75009275,0.00010989,2]
[335663847,1724406648999,-307.0091252,0.00010989,2]
[335663848,1724406649009,-473.97118097,0.00010989,2]
[335663849,1724406649018,-698.51,0.00010989,2]
[335663850,1724406649027,-698.51,0.00010989,2]
[335663851,1724406649037,-698.51,0.00010989,2]
[335663852,1724406649046,-846.2,0.00010989,2]
[335663853,1724406649055,-846.2,0.00010989,2]
[335663854,1724406649065,-846.2,0.00010989,2]
[335663855,1724406649075,-500.0,0.00010989,2]
[335663856,1724406649084,-500.0,0.00010989,2]
[335663857,1724406649094,-500.0,0.00010989,2]
[335663858,1724406649103,-500.0,0.00010989,2]
[335663859,1724406649113,-500.0,0.00010989,2]
[335663860,1724406649123,-500.0,0.00010989,2]
[335663861,1724406649132,-1039.44,0.00010989,2]
[335663862,1724406649141,-1039.44,0.00010989,2]
[335663863,1724406649151,-1039.44,0.00010989,2]
[335663864,1724406649160,-500.0,0.00010989,2]
[335663865,1724406649170,-500.0,0.00010989,2]
[335663866,1724406649179,-500.0,0.00010989,2]
[335663867,1724406649189,-500.0,0.00010989,2]
[335663868,1724406649198,-500.0,0.00010989,2]
[335663869,1724406649207,-500.0,0.00010989,2]
[335663870,1724406649216,-500.0,0.00010989,2]
[335663871,1724406649225,-500.0,0.00010989,2]
[335663872,1724406649235,-500.0,0.00010989,2]
[335663873,1724406649244,-500.0,0.00010989,2]
[335663874,1724406649253,-500.0,0.00010989,2]
[335663875,1724406649262,-500.0,0.00010989,2]
[335663876,1724406649272,-500.0,0.00010989,2]
[335663877,1724406649282,-500.0,0.00010989,2]
[335663878,1724406649291,-500.0,0.00010989,2]
[335663879,1724406649300,-3082.65,0.00010989,2]
[335663880,1724406649309,-3082.65,0.00010989,2]
[335663881,1724406649319,-3082.65,0.00010989,2]
[335663882,1724406649328,-2281.48,0.00010989,2]
[335663883,1724406649338,-2281.48,0.00010989,2]
[335663884,1724406649347,-2281.48,0.00010989,2]
[335663885,1724406649356,-569.28,0.00010989,2]
[335663886,1724406649365,-569.28,0.00010989,2]
[335663887,1724406649375,-569.28,0.00010989,2]